bitfinex/quotes_ETHUSD_20250517
["timestamp","ask_amount","ask_price","bid_price","bid_amount"]
[1747487487773,4.04850252,2470.1,2469.6,13.43395623]
[1747487487974,0.765,2470.3,2469.6,9.38471834]
[1747487488276,4.04891681,2469.8,2469.4,0.7857]
[1747487488478,4.04882241,2469.9,2469.7,8.092]
[1747487488654,4.81314858,2470.3,2469.7,8.092]
[1747487488961,4.0488464,2469.9,2469.7,8.092]
[1747487489162,4.0488464,2469.9,2469.4,0.7857]
[1747487489355,4.04932423,2469.6,2469.5,8.092]
[1747487489549,4.04898734,2469.8,2469.5,8.092]
[1747487489752,4.04883786,2469.9,2469.5,8.092]
[1747487490767,4.0486561,2470.0,2469.5,12.14139657]
[1747487490976,0.765,2470.3,2469.6,4.04923874]
[1747487491150,4.04757966,2470.7,2469.5,10.60117954]
[1747487491151,0.765,2470.2,2469.5,2.50917954]
[1747487491350,0.765,2470.5,2469.8,0.7857]
[1747487491577,4.04834191,2470.2,2469.8,0.7857]
[1747487492290,4.04857619,2470.1,2469.9,8.091]
[1747487492455,4.04857619,2470.1,2469.9,8.00700092]
[1747487492657,4.04858299,2470.0,2469.9,8.091]
[1747487493198,4.45334406,2470.1,2469.9,8.091]
[1747487493396,4.04845185,2470.1,2469.8,8.09]
[1747487493598,4.0486644,2470.0,2469.8,8.09]
[1747487493763,4.04859742,2470.0,2469.8,8.09]
[1747487495392,4.04874691,2469.9,2469.8,8.09]
[1747487495593,4.04911097,2469.7,2469.3,16.8977]
[1747487495786,4.04911097,2469.7,2469.4,8.09]
[1747487495982,4.04900466,2469.8,2469.4,8.09]
[1747487496564,4.04909524,2469.7,2469.3,12.83540413]
[1747487496765,4.04900466,2469.8,2469.4,8.09]
[1747487496766,4.048954,2469.8,2469.4,8.09]
[1747487497082,4.048954,2469.8,2469.5,8.09]
[1747487497702,4.04882146,2469.9,2469.5,8.09]
[1747487498126,4.04860289,2470.0,2469.5,8.09]
[1747487498127,4.04891913,2469.8,2469.5,8.09]
[1747487498824,4.04890949,2469.9,2469.5,8.09]
[1747487499039,1.67060691,2470.5,2469.7,0.55]
[1747487499207,0.8252,2470.4,2469.8,8.09]
[1747487499519,4.04862353,2470.0,2469.8,8.09]
[1747487499823,4.04874691,2469.9,2469.8,8.09]
[1747487500695,4.04874691,2469.9,2469.6,0.7611]
[1747487500928,4.04891966,2469.8,2469.7,8.09]
[1747487501236,4.04900436,2469.8,2469.7,8.09]
[1747487503031,4.04883226,2469.9,2469.7,8.09]
[1747487503735,4.04891084,2469.8,2469.7,8.09]
[1747487503893,4.04883782,2469.9,2469.7,8.09]
[1747487504099,4.04871014,2470.0,2469.7,8.09]
[1747487504521,4.04888071,2469.9,2469.7,8.09]
[1747487505122,4.04861848,2470.0,2469.7,8.09]
[1747487505555,4.04885597,2469.9,2469.7,8.09]
[1747487505756,4.04801952,2470.4,2469.9,4.04866597]
[1747487505918,4.0480866,2470.4,2469.8,8.789]
[1747487506247,1.67060691,2470.5,2470.0,4.04846472]
[1747487506434,0.762,2470.7,2469.9,1.80929399]
[1747487506640,4.04816263,2470.3,2469.8,20.90982521]
[1747487506819,0.762,2470.7,2469.9,4.0486716]
[1747487507020,4.04802626,2470.4,2469.9,4.0486716]
[1747487507354,4.04820119,2470.3,2469.8,20.90981964]
[1747487508028,4.04810753,2470.3,2469.9,4.0486911]
[1747487508426,4.04810753,2470.3,2469.8,20.90983114]
[1747487508626,4.04810753,2470.3,2469.8,24.98555815]
[1747487508846,4.04786651,2470.5,2469.9,4.04872377]
[1747487509066,4.80945341,2470.7,2469.8,12.86472701]
[1747487509253,4.04800512,2470.4,2470.0,8.089]
[1747487509550,4.04771831,2470.6,2470.1,4.04835478]
[1747487509727,4.04777084,2470.5,2470.0,12.13749103]
[1747487509928,4.04777084,2470.5,2470.0,15.84828301]
[1747487510432,4.04798244,2470.4,2470.0,11.79979198]
[1747487510755,4.04816625,2470.3,2470.0,3.71079198]
[1747487510945,4.04814402,2470.3,2470.1,8.089]
[1747487511122,4.04797886,2470.4,2470.1,8.089]
[1747487511627,4.04784882,2470.5,2470.1,8.089]
[1747487511835,4.04738152,2470.8,2470.2,4.83515898]
[1747487512029,1.67060691,2470.9,2470.2,4.83515898]
[1747487512030,4.04712898,2470.9,2470.4,4.04781663]
[1747487512230,4.04682805,2471.1,2470.5,0.787]
[1747487512231,4.04685315,2471.1,2470.5,0.787]
[1747487512561,4.04703631,2471.0,2470.6,8.089]
[1747487512741,4.04696531,2471.0,2470.6,12.13648875]
[1747487512966,4.04696531,2471.0,2470.6,8.089]
[1747487513149,4.04675465,2471.2,2470.7,8.7599]
[1747487513352,0.47990895,2471.5,2470.8,0.7599]
[1747487513760,4.04698201,2471.0,2470.9,8.051]
[1747487513964,4.04698201,2471.0,2470.8,0.7599]
[1747487514160,0.7767,2471.3,2470.9,8.051]
[1747487514441,4.04669648,2471.2,2470.9,8.051]
[1747487514653,4.04670162,2471.2,2470.9,8.051]
[1747487515071,4.04661984,2471.2,2470.9,8.051]
[1747487515372,4.04707098,2471.0,2470.8,0.7599]
[1747487515567,4.04707098,2471.0,2470.9,8.051]
[1747487516177,4.45135286,2471.2,2470.9,8.051]
[1747487516343,4.04654025,2471.3,2470.9,8.051]
[1747487516542,4.04654851,2471.3,2470.9,8.051]
[1747487516743,0.7767,2471.8,2470.9,9.33681568]
[1747487517044,4.0465459,2471.3,2470.9,9.33681568]
[1747487517245,4.04580543,2471.7,2470.9,9.33681568]
[1747487517457,4.04596212,2471.6,2470.9,8.051]
[1747487517650,4.04669961,2471.2,2471.0,8.05]
[1747487517974,4.04650712,2471.3,2471.0,8.05]
[1747487518354,4.04639412,2471.4,2471.0,12.09689462]
[1747487518355,4.04629554,2471.4,2471.0,12.09689462]
[1747487518577,4.04629554,2471.4,2471.0,8.05]
[1747487518757,4.04621712,2471.5,2471.0,13.22491419]
[1747487518968,4.04630573,2471.4,2471.0,9.17799995]
[1747487519366,4.04578142,2471.8,2471.1,4.59673529]
[1747487519559,1.99957925,2472.4,2471.0,9.17799995]
[1747487519560,0.7745,2472.1,2471.3,0.55]
[1747487519879,4.04549726,2471.9,2471.4,4.84065988]
[1747487520058,4.0453607,2472.0,2471.5,12.09510187]
[1747487520253,4.0457214,2471.8,2471.5,8.049]
[1747487520453,4.04608121,2471.6,2471.4,2.31521793]
[1747487520662,4.04588822,2471.7,2471.5,8.049]
[1747487520977,0.7745,2472.3,2471.5,8.049]
[1747487520978,4.04551445,2471.9,2471.5,8.049]
[1747487521274,4.04532767,2472.0,2471.5,8.049]
[1747487521275,4.04539681,2472.0,2471.5,12.09510691]
[1747487521477,4.04520881,2472.1,2471.6,4.04584423]
[1747487521648,4.04520881,2472.1,2471.6,6.53391033]
[1747487521964,4.04503449,2472.2,2471.7,4.04573216]
[1747487522163,4.04516828,2472.1,2471.7,0.55]
[1747487522689,8.7745,2472.5,2471.8,8.049]
[1747487522849,4.04547109,2471.9,2471.8,8.049]
[1747487523181,4.04526848,2472.1,2471.8,8.049]
[1747487523381,4.04522441,2472.1,2471.8,10.3119976]
[1747487523571,4.04503866,2472.2,2471.8,10.3119976]
[1747487523770,4.04533816,2472.0,2471.8,10.3119976]
[1747487523976,4.04547109,2471.9,2471.8,2.2629976]
[1747487524148,4.04547109,2471.9,2471.8,8.048]
[1747487524483,4.04525691,2472.1,2471.8,8.048]
[1747487524780,4.0453219,2472.0,2471.8,8.048]
[1747487524979,4.04522216,2472.1,2471.8,8.048]
[1747487525184,0.7745,2472.5,2471.8,8.048]
[1747487525185,4.04512706,2472.2,2471.8,8.048]
[1747487525500,4.04477709,2472.4,2472.0,0.7807]
[1747487525649,0.7814,2472.7,2472.0,0.7807]
[1747487526090,4.04475517,2472.4,2472.0,0.7807]
[1747487526401,4.04442399,2472.6,2472.1,0.55]
[1747487526560,4.04450328,2472.5,2472.2,0.53759892]
[1747487526753,4.04441135,2472.6,2472.3,8.047]
[1747487526956,4.82538296,2472.9,2472.4,0.7807]
[1747487527181,4.0439987,2472.8,2472.5,8.92977]
[1747487527345,0.7814,2472.9,2472.5,8.92977]
[1747487527551,4.04432581,2472.6,2472.5,0.88277]
[1747487527764,4.04432581,2472.6,2472.5,8.047]
[1747487527980,4.04448938,2472.5,2472.4,17.474]
[1747487528285,4.04448938,2472.5,2472.4,25.521]
[1747487528688,4.04448938,2472.5,2472.4,25.52]
[1747487529371,4.04448938,2472.5,2472.4,17.474]
[1747487529776,4.04448938,2472.5,2472.4,25.52]
[1747487530982,4.04448938,2472.5,2472.4,26.37925288]
[1747487531188,4.04448938,2472.5,2472.4,25.52]
[1747487531354,0.7814,2473.1,2472.4,17.474]
[1747487531553,4.04412164,2472.8,2472.5,8.046]
[1747487531753,4.0441859,2472.7,2472.5,8.046]
[1747487531979,4.0441859,2472.7,2472.6,2.63007]
[1747487532288,4.0441859,2472.7,2472.6,10.67507]
[1747487532483,4.0441859,2472.7,2472.6,8.045]
[1747487532857,4.0443309,2472.6,2472.4,17.474]
[1747487533058,4.0443309,2472.6,2472.5,8.045]
[1747487533382,4.04425466,2472.7,2472.5,8.045]
[1747487534086,4.04412743,2472.8,2472.5,8.045]
[1747487534287,4.04416225,2472.7,2472.6,2.5519]
[1747487534790,4.82498102,2473.1,2472.6,6.5961579]
[1747487534976,4.82496454,2473.1,2472.6,2.5519]
[1747487535179,4.04376151,2473.0,2472.6,2.5519]
[1747487535358,4.04377086,2473.0,2472.7,1.46413579]
[1747487535563,4.04388261,2472.9,2472.7,1.46413579]
[1747487535762,4.04374517,2473.0,2472.8,8.045]
[1747487536482,4.04383517,2472.9,2472.8,8.045]
[1747487537015,0.8112,2473.5,2472.8,8.045]
[1747487537167,4.04309565,2473.4,2472.9,5.07336303]
[1747487537667,0.8112,2473.7,2473.2,4.04330843]
[1747487537899,4.04262167,2473.7,2473.3,8.045]
[1747487538108,4.04257693,2473.7,2473.3,8.045]
[1747487538316,4.04257693,2473.7,2473.3,9.25382492]
[1747487538769,4.04269346,2473.6,2473.3,9.25382492]
[1747487538970,4.0430177,2473.4,2473.3,8.044]
[1747487540100,4.04293097,2473.5,2473.3,8.044]
[1747487540308,4.0430177,2473.4,2473.3,8.044]
[1747487540470,4.0432861,2473.3,2473.0,0.7952]
[1747487540671,4.04348822,2473.2,2473.1,8.043]
[1747487540978,4.04325633,2473.3,2473.1,8.043]
[1747487541367,0.7647,2473.7,2472.7,0.7952]
[1747487541580,4.04360671,2473.1,2472.8,8.043]
[1747487541799,4.04360671,2473.1,2472.8,10.13385034]
[1747487541996,4.04359505,2473.1,2472.8,10.13385034]
[1747487542210,4.04359505,2473.1,2472.8,2.09085034]
[1747487542507,4.81005245,2473.3,2472.9,8.043]
[1747487542813,4.04358401,2473.1,2473.0,8.043]
[1747487542995,0.768,2474.3,2473.0,16.8116]
[1747487543194,0.768,2473.7,2473.1,16.077]
[1747487543369,4.04277265,2473.6,2473.1,16.077]
[1747487543575,0.768,2474.1,2473.3,4.81164015]
[1747487543871,4.04248506,2473.8,2473.3,4.81164015]
[1747487544203,4.04243742,2473.8,2473.3,4.81169092]
[1747487544405,4.04203718,2474.0,2473.3,18.2316]
[1747487544570,4.04240716,2473.8,2473.3,22.27469377]
[1747487544772,4.04240716,2473.8,2473.4,2.80025862]
[1747487544973,4.0422813,2473.9,2473.4,6.84325984]
[1747487546203,4.04239062,2473.8,2473.4,2.80025862]
[1747487546522,4.04278747,2473.6,2473.5,8.034]
[1747487546813,0.768,2473.9,2473.5,8.034]
[1747487547112,4.04228186,2473.9,2473.5,8.034]
[1747487547483,4.80998498,2474.1,2473.5,8.034]
[1747487547484,4.04203718,2474.0,2473.5,12.07684422]
[1747487547694,4.04171132,2474.2,2473.6,1.24810897]
[1747487547879,0.7697,2474.3,2473.7,0.7763]
[1747487548081,4.04178579,2474.2,2473.7,4.81880318]
[1747487548308,0.7697,2474.5,2473.8,4.04235988]
[1747487548612,4.04139509,2474.4,2473.9,4.04210356]
[1747487548815,4.04122516,2474.5,2474.1,4.81809976]
[1747487548974,4.04122516,2474.5,2474.1,0.7763]
[1747487549179,4.04150239,2474.4,2474.1,0.7763]
[1747487550422,4.04137935,2474.5,2474.1,0.7763]
[1747487550712,4.04140851,2474.4,2474.1,0.7763]
[1747487551114,4.04114199,2474.6,2474.1,6.18415322]
[1747487551313,0.7697,2475.4,2474.4,0.7763]
[1747487551520,4.0407933,2474.8,2474.5,8.032]
[1747487551700,4.04029674,2475.1,2474.5,8.032]
[1747487551883,4.04048511,2475.0,2474.5,12.07316991]
[1747487552218,4.0405832,2474.9,2474.5,10.5260995]
[1747487552412,4.80946302,2475.4,2474.5,10.5260995]
[1747487552413,0.7697,2475.4,2474.5,10.5260995]
[1747487552621,4.03992539,2475.3,2474.5,14.56731571]
[1747487552779,4.04017597,2475.2,2474.6,4.86741548]
[1747487552980,4.04007756,2475.2,2474.6,4.86747438]
[1747487553277,4.03985498,2475.4,2474.6,3.57497901]
[1747487553480,4.03999138,2475.3,2474.8,4.04072777]
[1747487553722,4.03999138,2475.3,2474.9,0.8265]
[1747487553890,4.03999138,2475.3,2475.0,8.031]
[1747487554088,4.18641104,2475.5,2475.1,8.031]
[1747487554089,4.03981489,2475.4,2475.1,8.031]
[1747487554302,4.18640389,2475.5,2475.1,8.031]
[1747487554490,4.03975115,2475.4,2475.1,8.031]
[1747487555392,4.03975115,2475.4,2475.1,9.32080603]
[1747487555590,4.04000942,2475.3,2474.9,0.8265]
[1747487555805,4.04040404,2475.0,2474.9,0.8265]
[1747487556006,4.04057705,2474.9,2474.7,8.038]
[1747487556202,4.04007756,2475.2,2474.6,0.8265]
[1747487556402,4.04056729,2474.9,2474.8,8.029]
[1747487556606,4.04077801,2474.8,2474.6,0.8265]
[1747487556830,4.86778328,2475.3,2474.7,8.029]
[1747487556831,0.8278,2475.3,2474.7,8.029]
[1747487557032,4.04038028,2475.1,2474.7,8.029]
[1747487557335,4.04053191,2475.0,2474.7,8.91455]
[1747487557536,8.0,2475.4,2474.6,0.8265]
[1747487557718,4.04073056,2474.8,2474.3,0.8265]
[1747487557949,4.04099116,2474.7,2474.4,8.029]
[1747487558125,4.04105689,2474.7,2474.4,8.029]
[1747487558321,0.8278,2475.2,2474.4,8.029]
[1747487558531,4.04080339,2474.8,2474.5,2.0937025]
[1747487558845,4.86791578,2475.2,2474.5,2.0937025]
[1747487558846,4.04105714,2474.6,2474.5,2.0937025]
[1747487559147,0.8278,2475.2,2474.4,4.04129677]
[1747487559439,4.04048922,2475.0,2474.5,12.07009928]
[1747487559604,4.04057388,2474.9,2474.6,0.7867]
[1747487560458,4.04073056,2474.8,2474.7,8.029]
[1747487560900,4.04045202,2475.0,2474.7,8.029]
[1747487561108,4.04041216,2475.0,2474.7,9.6186]
[1747487561338,4.04065845,2474.9,2474.7,9.6186]
[1747487561501,4.04130303,2474.5,2474.4,8.029]
[1747487561935,4.80478066,2474.9,2474.2,17.459]
[1747487561936,4.04138376,2474.4,2474.2,17.459]
[1747487562166,4.80476985,2474.9,2474.3,8.029]
[1747487562346,4.04128961,2474.5,2474.3,8.029]
[1747487563047,1.24467698,2474.9,2474.3,8.029]
[1747487563230,4.04095499,2474.7,2474.3,8.029]
[1747487563432,4.04134199,2474.5,2474.3,8.029]
[1747487563632,4.04120159,2474.6,2474.3,8.029]
[1747487564055,4.04123318,2474.5,2474.3,8.029]
[1747487564773,4.04114423,2474.6,2474.3,8.029]
[1747487565072,4.04120391,2474.6,2474.3,8.029]
[1747487565263,4.04121228,2474.6,2474.3,8.029]
[1747487565781,4.041,2474.7,2474.3,11.19725244]
[1747487566079,4.04138376,2474.4,2474.3,3.16825244]
[1747487566369,4.04138376,2474.4,2474.3,8.029]
[1747487566871,4.0415471,2474.3,2474.2,17.459]
[1747487567031,4.0415471,2474.3,2474.2,25.488]
[1747487567547,4.04142742,2474.4,2474.2,25.488]
[1747487567762,4.04129776,2474.5,2474.2,28.25257853]
[1747487568237,4.04068434,2474.9,2474.2,28.25257853]
[1747487568238,0.7784,2474.9,2474.2,28.25257853]
[1747487568571,12.84398706,2474.9,2474.3,4.82742568]
[1747487569068,0.7784,2474.7,2473.6,0.7859]
[1747487569284,4.04166876,2474.3,2473.8,4.04235605]
[1747487569565,2.54844691,2474.6,2473.7,0.04041842]
[1747487569733,9.75960691,2474.6,2473.7,0.04041837]
[1747487569938,4.04162463,2474.3,2473.8,4.04232676]
[1747487570139,4.04162463,2474.3,2473.8,5.33209127]
[1747487570361,4.04162463,2474.3,2473.9,4.82809675]
[1747487570534,4.04178249,2474.2,2473.9,0.7859]
[1747487570742,4.04194396,2474.1,2473.9,0.7859]
[1747487571147,4.04162085,2474.3,2473.9,0.7859]
[1747487571363,4.04146081,2474.4,2473.9,5.83559161]
[1747487571751,4.04155803,2474.3,2473.9,1.79346645]
[1747487572996,4.0418143,2474.2,2473.9,1.79346645]
[1747487573283,4.04194386,2474.1,2474.0,8.029]
[1747487573573,1.67060691,2474.6,2474.0,8.029]
[1747487573875,4.04122044,2474.5,2474.0,8.029]
[1747487574072,4.04124554,2474.5,2474.1,5.32757087]
[1747487574255,4.04124554,2474.5,2474.1,5.3275639]
[1747487574455,4.0410993,2474.6,2474.2,0.7859]
[1747487574855,4.04095869,2474.7,2474.2,4.82751917]
[1747487575050,4.81902725,2474.9,2474.3,4.04143012]
[1747487575274,0.7784,2475.1,2474.3,4.65277912]
[1747487575457,4.0408799,2474.8,2474.3,4.65277912]
[1747487575647,4.04066222,2474.9,2474.4,4.04138313]
[1747487575978,4.04046839,2475.0,2474.5,4.04111447]
[1747487576179,4.04046839,2475.0,2474.6,0.7859]
[1747487576339,4.04110386,2474.6,2474.4,8.075]
[1747487576540,4.04048724,2475.0,2474.5,4.04110109]
[1747487576785,12.89624598,2475.4,2474.6,4.04094811]
[1747487576957,4.04008808,2475.2,2474.7,4.04077216]
[1747487577156,4.03994448,2475.3,2474.9,0.7859]
[1747487577365,4.03994448,2475.3,2474.9,8.8609]
[1747487578795,0.14679175,2475.5,2475.0,0.55]
[1747487579009,0.14679175,2475.5,2475.3,4.03989103]
[1747487579171,0.14679175,2475.5,2475.1,0.7859]
[1747487579358,0.14679175,2475.5,2475.2,8.075]
[1747487579558,4.18648339,2475.5,2475.2,10.22761974]
[1747487579795,4.18648339,2475.5,2475.3,8.074]
[1747487580158,0.14679175,2475.5,2475.3,8.074]
[1747487580402,4.04023086,2475.2,2474.8,0.80817203]
[1747487580685,4.04010106,2475.2,2474.8,0.80817203]
[1747487580888,4.03999202,2475.3,2474.8,4.84887714]
[1747487581096,0.7784,2475.4,2474.8,4.84887714]
[1747487581097,4.03976204,2475.4,2475.0,4.04031672]
[1747487581261,0.14679175,2475.5,2475.1,4.82613308]
[1747487581586,0.14679175,2475.5,2475.2,8.074]
[1747487581808,4.18646748,2475.5,2475.2,8.074]
[1747487582356,0.14679175,2475.5,2475.2,8.074]
[1747487582659,0.14679175,2475.5,2475.3,1.29000544]
[1747487582860,0.14679175,2475.5,2475.3,5.32988318]
[1747487583084,0.14679175,2475.5,2475.3,1.29000544]
[1747487583484,0.14679175,2475.5,2475.3,5.32990887]
[1747487583689,0.14679175,2475.5,2475.3,1.29000544]
[1747487583883,0.14679175,2475.5,2475.4,1.34040366]
[1747487584306,4.18637971,2475.5,2475.4,1.34040366]
[1747487584512,4.18637971,2475.5,2475.4,8.073]
[1747487585383,0.14679175,2475.5,2474.9,0.56347771]
[1747487585600,4.04015479,2475.2,2475.0,8.073]
[1747487586408,4.04024079,2475.1,2475.0,8.073]
[1747487586584,4.04043654,2475.0,2474.9,8.072]
[1747487586991,4.04001685,2475.3,2474.9,8.8799]
[1747487587185,4.04017578,2475.2,2475.0,8.072]
[1747487587479,4.0404963,2475.0,2474.8,8.072]
[1747487587902,4.0403185,2475.1,2474.8,8.072]
[1747487588486,0.7703,2475.4,2474.8,8.072]
[1747487588687,4.04056729,2474.9,2474.8,8.072]
[1747487589110,4.040804,2474.8,2474.6,0.8079]
[1747487589292,4.04114107,2474.6,2474.4,8.073]
[1747487589485,4.04093815,2474.7,2474.4,8.073]
[1747487589883,0.8123,2474.9,2474.4,8.073]
[1747487590212,4.85300368,2474.9,2474.4,8.073]
[1747487590410,4.04083161,2474.8,2474.4,8.073]
[1747487590574,4.04090961,2474.7,2474.4,8.073]
[1747487591699,4.04105942,2474.6,2474.4,8.02143012]
[1747487591895,4.04105942,2474.6,2474.3,0.7711]
[1747487592096,4.04133942,2474.5,2474.3,8.073]
[1747487592607,4.04130647,2474.5,2474.3,8.073]
[1747487593107,4.04125818,2474.5,2474.2,17.453]
[1747487593312,4.04125818,2474.5,2474.1,8.073]
[1747487593507,4.04076366,2474.8,2474.1,14.65997191]
[1747487593710,4.04080684,2474.8,2474.3,4.04146693]
[1747487593915,4.0408986,2474.7,2474.4,0.8128]
[1747487594114,1.67060691,2475.1,2474.4,0.8128]
[1747487594409,4.04075719,2474.8,2474.4,0.8128]
[1747487594590,4.04083058,2474.8,2474.5,8.073]
[1747487594788,4.04056797,2474.9,2474.5,8.073]
[1747487594982,4.04091526,2474.7,2474.5,8.073]
[1747487595178,4.04091608,2474.7,2474.5,8.073]
[1747487595378,4.04024079,2475.1,2474.5,8.073]
[1747487595603,4.0409841,2474.7,2474.5,8.073]
[1747487595799,8.86454418,2475.2,2474.5,8.073]
[1747487596010,4.04073206,2474.8,2474.5,8.073]
[1747487596989,4.0408606,2474.8,2474.5,8.073]
[1747487597187,4.0409485,2474.7,2474.5,8.073]
[1747487597425,4.04121456,2474.6,2474.4,8.073]
[1747487597787,4.04076171,2474.8,2474.4,8.073]
[1747487597983,12.90465049,2475.2,2474.4,9.76989382]
[1747487598202,4.04082158,2474.8,2474.4,9.76989382]
[1747487598581,4.04098922,2474.7,2474.4,9.76989382]
[1747487598977,4.04096255,2474.7,2474.4,9.76989382]
[1747487599391,4.04081728,2474.8,2474.4,9.76989382]
[1747487599898,4.04024079,2475.1,2474.4,9.76989382]
[1747487600098,4.04100732,2474.7,2474.4,8.073]
[1747487600298,4.04106846,2474.6,2474.4,8.073]
[1747487600724,4.04122044,2474.5,2474.4,8.073]
[1747487601023,4.04114599,2474.6,2474.4,8.073]
[1747487601520,9.95894985,2475.1,2474.4,8.073]
[1747487601730,4.0402853,2475.1,2474.5,0.04040922]
[1747487601913,4.0402853,2475.1,2474.6,4.83426382]
[1747487602113,4.04016386,2475.2,2474.7,4.04088342]
[1747487602288,4.04007756,2475.2,2474.7,4.04088342]
[1747487602489,4.03995999,2475.3,2474.8,4.08111242]
[1747487602802,4.04008946,2475.2,2474.8,4.04070713]
[1747487603051,4.04008946,2475.2,2474.9,8.073]
[1747487604320,4.04030136,2475.1,2474.9,8.073]
[1747487604495,4.04016744,2475.2,2474.9,8.073]
[1747487604701,4.03999972,2475.3,2474.9,8.073]
[1747487605031,4.03999972,2475.3,2474.9,8.042]
[1747487605990,4.18645227,2475.5,2475.1,0.7933]
[1747487606324,4.18645227,2475.5,2475.1,4.8335273]
[1747487606534,4.18645227,2475.5,2475.1,0.7933]
[1747487606898,0.14679175,2475.5,2475.1,0.7933]
[1747487607098,0.14679175,2475.5,2475.3,4.03979328]
[1747487608056,0.14679175,2475.5,2475.4,4.03975115]
[1747487608195,0.14679175,2475.5,2475.4,12.08175115]
[1747487608733,0.14679175,2475.5,2475.4,12.87505115]
[1747487609118,0.14679175,2475.5,2475.4,14.56655744]
[1747487609428,0.14679175,2475.5,2475.4,15.11655744]
[1747487609796,0.14679175,2475.5,2475.4,23.11655744]
[1747487610000,0.14679175,2475.5,2475.4,40.56455744]
[1747487610193,0.14679175,2475.5,2475.4,40.87078868]
[1747487611331,1.99957925,2476.9,2476.0,8.07754442]
[1747487611535,1.99957925,2476.9,2476.7,0.7933]
[1747487611741,1.99957925,2476.9,2476.8,8.041]
[1747487612032,1.99957925,2476.9,2476.7,8.041]
[1747487613031,4.0374677,2476.8,2476.7,8.04]
[1747487613327,4.03749206,2476.8,2476.4,25.487]
[1747487613529,1.99957925,2476.9,2476.4,29.52507217]
[1747487613732,1.99957925,2476.9,2476.5,4.03793711]
[1747487613929,1.99957925,2476.9,2476.5,4.80839754]
[1747487614131,1.99957925,2476.9,2476.6,8.04]
[1747487614939,1.99957925,2476.9,2476.6,12.07775071]
[1747487615419,1.99957925,2476.9,2476.8,4.0374677]
[1747487615927,4.0366528,2477.3,2476.8,1.61152501]
[1747487616132,0.77,2477.4,2476.9,8.038]
[1747487616296,4.03708663,2477.1,2476.9,8.038]
[1747487616929,4.0371417,2477.0,2476.9,8.038]
[1747487617135,4.80654903,2477.4,2476.5,0.7706]
[1747487617434,4.0371417,2477.0,2476.6,8.038]
[1747487617603,4.0370567,2477.1,2476.6,12.07572862]
[1747487617805,4.80654916,2477.4,2476.7,4.07797817]
[1747487618008,4.03667901,2477.3,2476.8,4.03735268]
[1747487618231,4.03667901,2477.3,2476.7,0.04037417]
[1747487618232,0.77,2477.4,2476.9,8.038]
[1747487618462,4.0371417,2477.0,2476.9,8.038]
[1747487618841,4.0371417,2477.0,2476.5,0.7706]
[1747487618842,4.03750251,2476.8,2476.5,0.7706]
[1747487619044,4.0373752,2476.9,2476.6,8.038]
[1747487619354,4.79948685,2476.9,2476.6,8.038]
[1747487620263,4.79948673,2476.9,2476.6,8.038]
[1747487620673,1.64576913,2476.9,2476.3,0.7866]
[1747487620855,4.03791835,2476.6,2476.2,8.037]
[1747487621057,0.7621,2476.9,2476.5,4.03795177]
[1747487621361,4.0368314,2477.2,2476.5,0.7866]
[1747487621562,12.85959962,2477.4,2476.5,2.07276185]
[1747487621744,4.03720599,2477.0,2476.5,6.11071778]
[1747487622568,12.09575304,2477.3,2476.5,2.07276185]
[1747487622869,4.03651778,2477.4,2476.7,0.8112]
[1747487623068,4.03692426,2477.2,2476.8,8.037]
[1747487623375,4.03709665,2477.1,2476.9,8.037]
[1747487623667,4.03709665,2477.1,2476.8,8.037]
[1747487623873,5.70698937,2477.5,2477.0,4.03703939]
[1747487624173,4.03640188,2477.5,2477.0,4.03713281]
[1747487624333,0.7994,2477.6,2476.9,5.47205519]
[1747487624535,0.7994,2477.6,2476.9,5.47212078]
[1747487624737,4.03644415,2477.5,2477.0,5.38797252]
[1747487625166,4.03650679,2477.4,2477.0,5.38797252]
[1747487625367,4.03643647,2477.5,2477.0,5.38797252]
[1747487625575,4.03643647,2477.5,2477.0,1.35091208]
[1747487625745,4.0361132,2477.7,2477.1,1.3612]
[1747487625946,4.03583824,2477.8,2477.1,5.81278083]
[1747487626172,4.03617697,2477.6,2477.1,5.81278083]
[1747487626348,6.50549566,2478.1,2477.5,4.03620817]
[1747487626547,4.03575538,2477.9,2477.3,0.8112]
[1747487626767,4.03583824,2477.8,2477.4,8.037]
[1747487627160,4.03552073,2478.0,2477.4,8.037]
[1747487627361,4.0355494,2478.0,2477.4,8.037]
[1747487627572,4.035781,2477.9,2477.4,12.07338901]
[1747487627777,4.035781,2477.9,2477.4,13.90402037]
[1747487628278,4.03558556,2478.0,2477.5,4.03628309]
[1747487628468,4.03601394,2477.7,2477.5,8.036]
[1747487628656,4.03590845,2477.8,2477.5,8.036]
[1747487629072,4.03600113,2477.7,2477.5,8.036]
[1747487629480,4.03616402,2477.6,2477.5,8.036]
[1747487629665,4.0359545,2477.8,2477.5,8.036]
[1747487629868,4.0362847,2477.6,2477.3,0.8112]
[1747487630266,4.0362847,2477.6,2477.3,8.8472]
[1747487630784,4.03648986,2477.4,2477.3,8.036]
[1747487631080,0.8162,2477.7,2477.3,8.036]
[1747487631081,4.03624356,2477.6,2477.3,8.036]
[1747487631282,0.8162,2477.7,2477.1,1.18179321]
[1747487631460,0.8162,2477.7,2476.9,0.7671]
[1747487631661,4.03697872,2477.1,2477.0,8.035]
[1747487631963,4.03718387,2477.0,2476.7,0.7671]
[1747487632157,4.03739538,2476.9,2476.6,17.438]
[1747487632372,4.03739538,2476.9,2476.7,8.035]
[1747487632681,4.03717754,2477.0,2476.7,8.035]
[1747487633063,4.8197671,2477.1,2476.7,8.035]
[1747487633264,4.03726136,2477.0,2476.7,8.035]
[1747487633481,4.03748641,2476.8,2476.6,25.473]
[1747487633670,0.7827,2477.1,2476.6,25.473]
[1747487633671,4.81974494,2477.1,2476.6,25.473]
[1747487633978,4.03738181,2476.9,2476.6,25.473]
[1747487634184,4.03763071,2476.7,2476.6,25.473]
[1747487634380,4.03763071,2476.7,2476.6,17.438]
[1747487634580,4.03754676,2476.8,2476.6,17.438]
[1747487634975,4.03763071,2476.7,2476.6,17.438]
[1747487635151,4.03755859,2476.8,2476.5,8.035]